bitfinex-derivatives/quotes_BTCF0:USTF0_20250130
["timestamp","ask_amount","ask_price","bid_price","bid_amount"]
[1738276812131,0.002,105240.0,105230.0,0.74407795]
[1738276813926,0.002,105240.0,105230.0,0.81260997]
[1738276814126,0.002,105240.0,105230.0,0.74407795]
[1738276814835,0.002,105240.0,105230.0,0.75835795]
[1738276815636,0.002,105240.0,105230.0,1.09935789]
[1738276816136,0.192013,105240.0,105230.0,1.09935789]
[1738276821135,0.192013,105240.0,105230.0,1.07383789]
[1738276821335,0.192013,105240.0,105230.0,1.06681789]
[1738276821539,0.192013,105240.0,105230.0,1.04133789]
[1738276821730,0.192013,105240.0,105230.0,1.01943789]
[1738276821933,0.65334502,105240.0,105230.0,0.18062445]
[1738276822233,0.75267704,105240.0,105230.0,0.18062445]
[1738276827547,0.76203523,105240.0,105230.0,0.18062445]
[1738276827750,0.190031,105230.0,105220.0,0.03532963]
[1738276828052,0.28996302,105230.0,105220.0,0.03532963]
[1738276828941,0.29096302,105230.0,105220.0,0.03532963]
[1738276833250,0.29096302,105230.0,105220.0,0.00988963]
[1738276833441,0.29096302,105230.0,105220.0,0.03524963]
[1738276844457,0.29096302,105230.0,105220.0,0.03508963]
[1738276851767,0.25956302,105230.0,105220.0,0.03508963]
[1738276853869,0.37356531,105230.0,105220.0,0.03508963]
[1738276855075,0.37356531,105230.0,105220.0,0.00988963]
[1738276855367,0.37356531,105230.0,105220.0,0.03496963]
[1738276872776,0.37356531,105230.0,105220.0,0.00988963]
[1738276872969,0.40636531,105230.0,105220.0,0.03496963]
[1738276878376,0.40636531,105230.0,105220.0,0.03492963]
[1738276878377,0.76716531,105230.0,105220.0,0.03492963]
[1738276878681,0.83569733,105230.0,105220.0,0.00014258]
[1738276879083,0.76716531,105230.0,105220.0,0.00014258]
[1738276883480,0.90965921,105230.0,105220.0,0.00014258]
[1738276883687,1.27045921,105230.0,105220.0,0.00014258]
[1738276886291,1.33899123,105230.0,105220.0,0.00014258]
[1738276887193,1.27045921,105230.0,105220.0,0.00014258]
[1738276887986,1.15645692,105230.0,105220.0,0.00014258]
[1738276889089,1.22498894,105230.0,105220.0,0.00014258]
[1738276889593,1.15645692,105230.0,105220.0,0.00014258]
[1738276891096,1.01396302,105230.0,105220.0,0.00014258]
[1738276894802,1.08249504,105230.0,105220.0,0.00014258]
[1738276895699,1.19634341,105230.0,105220.0,0.00014258]
[1738276898605,1.08249504,105230.0,105220.0,0.00014258]
[1738276902809,1.22498894,105230.0,105220.0,0.00014258]
[1738276913413,1.25010894,105230.0,105220.0,0.00014258]
[1738276914314,1.42102802,105230.0,105220.0,0.00014258]
[1738276916616,1.39590802,105230.0,105220.0,0.00014258]
[1738276917720,1.25341412,105230.0,105220.0,0.00014258]
[1738276923824,1.24605412,105230.0,105220.0,0.00014258]
[1738276924523,1.1775221,105230.0,105220.0,0.00014258]
[1738276925026,1.24605412,105230.0,105220.0,0.00014258]
[1738276925327,1.1775221,105230.0,105220.0,0.00014258]
[1738276925516,1.24605412,105230.0,105220.0,0.00014258]
[1738276925727,1.22061412,105230.0,105220.0,0.00014258]
[1738276926128,1.1520821,105230.0,105220.0,0.00014258]
[1738276933831,1.1520821,105230.0,105220.0,0.03174258]
[1738276936727,1.1237085,105230.0,105220.0,0.03174258]
[1738276937127,1.1237085,105230.0,105220.0,0.06354258]
[1738276944033,1.1237085,105230.0,105220.0,0.09674258]
[1738276944238,0.7629085,105230.0,105220.0,0.09674258]
[1738276945332,0.7629085,105230.0,105220.0,0.11159293]
[1738276946833,0.7629085,105230.0,105220.0,0.11159191]
[1738276947034,0.4021085,105230.0,105220.0,0.1353508]
[1738276948449,0.45902961,105230.0,105220.0,0.36320614]
[1738276949048,0.45902961,105230.0,105220.0,0.33944668]
[1738276950050,0.45902961,105230.0,105220.0,0.32459792]
[1738276951755,0.25956302,105230.0,105220.0,0.32459792]
[1738276957651,0.25956302,105230.0,105220.0,0.35143792]
[1738276961261,0.25956302,105230.0,105220.0,0.36104749]
[1738276962565,0.25956302,105230.0,105220.0,0.53147541]
[1738276963751,0.25956302,105230.0,105220.0,0.52186584]
[1738276966766,0.25956302,105230.0,105220.0,0.35143792]
[1738276977174,0.37354393,105230.0,105220.0,0.35143792]
[1738276979176,0.37354393,105230.0,105220.0,0.32459792]
[1738276979375,0.37354393,105230.0,105220.0,0.35115792]
[1738276984675,0.37354393,105230.0,105220.0,0.32459792]
[1738276984880,0.37354393,105230.0,105220.0,0.35103792]
[1738276986281,0.37454393,105230.0,105220.0,0.35103792]
[1738276987875,0.37354393,105230.0,105220.0,0.35103792]
[1738276988169,0.37554393,105230.0,105220.0,0.35103792]
[1738276989479,0.37554393,105230.0,105220.0,0.63568998]
[1738276993279,0.37554393,105230.0,105220.0,0.35103792]
[1738276993479,0.30701191,105230.0,105220.0,0.35103792]
[1738276993977,0.30701191,105230.0,105220.0,0.51464692]
[1738276994287,0.30701191,105230.0,105220.0,0.35099792]
[1738276994580,0.30701191,105230.0,105220.0,0.60957894]
[1738276994781,0.11698091,105230.0,105220.0,1.05375922]
[1738276995376,0.11698091,105230.0,105220.0,0.9852272]
[1738276995686,0.11698091,105230.0,105220.0,0.75737186]
[1738276996079,0.11698091,105230.0,105220.0,0.82590388]
[1738276996688,0.11698091,105230.0,105220.0,0.82590239]
[1738276997087,0.11698091,105230.0,105220.0,0.82590231]
[1738276998389,0.30701191,105230.0,105220.0,0.82590231]
[1738276998588,0.11698091,105230.0,105220.0,0.82590231]
[1738276998789,0.11698091,105230.0,105220.0,0.82590239]
[1738276999089,0.11698091,105230.0,105220.0,1.12590239]
[1738277000291,0.003,105230.0,105220.0,1.46649278]
[1738277000587,0.003,105230.0,105220.0,1.16649278]
[1738277000785,0.003,105230.0,105220.0,1.46649278]
[1738277005084,0.190019,105240.0,105230.0,0.190031]
[1738277005288,0.190019,105240.0,105230.0,0.63420979]
[1738277006388,0.191019,105240.0,105230.0,0.63420979]
[1738277006584,0.001,105240.0,105230.0,0.70274181]
[1738277006986,0.001,105240.0,105230.0,1.00274181]
[1738277007498,0.64992639,105270.0,105240.0,0.13706404]
[1738277007693,0.25652639,105270.0,105260.0,0.68784104]
[1738277007910,0.11398091,105270.0,105260.0,0.72643392]
[1738277008308,0.1325707,105280.0,105270.0,0.189959]
[1738277008502,0.1325707,105280.0,105270.0,0.6863239]
[1738277008701,0.1325707,105280.0,105270.0,0.7186239]
[1738277009414,0.1335707,105280.0,105270.0,0.78715592]
[1738277009815,0.1335707,105280.0,105270.0,0.76340716]
[1738277010317,0.321307,105300.0,105270.0,0.57344816]
[1738277010613,0.321307,105300.0,105290.0,0.61925502]
[1738277010814,0.321307,105300.0,105290.0,0.66281914]
[1738277011015,0.289907,105300.0,105290.0,0.66281914]
[1738277011223,0.289907,105300.0,105290.0,0.69311252]
[1738277011515,0.293907,105300.0,105290.0,0.69311255]
[1738277012210,0.289907,105300.0,105290.0,0.69311255]
[1738277012610,0.289907,105300.0,105290.0,0.69327255]
[1738277012808,0.289907,105300.0,105290.0,0.67843502]
[1738277015009,0.289907,105300.0,105290.0,0.74696704]
[1738277015510,0.289907,105300.0,105290.0,0.67843502]
[1738277015915,0.289907,105300.0,105290.0,0.6932725]
[1738277017621,0.289907,105300.0,105290.0,0.67843502]
[1738277017818,0.289907,105300.0,105290.0,0.69327246]
[1738277018713,0.289907,105300.0,105290.0,0.76180448]
[1738277018913,0.289907,105300.0,105290.0,0.69327246]
[1738277021412,0.1,105300.0,105290.0,0.69327246]
[1738277021722,0.1,105300.0,105290.0,0.70298235]
[1738277022018,0.1,105300.0,105290.0,0.702982]
[1738277022418,0.1,105300.0,105290.0,0.72672135]
[1738277024026,0.1,105300.0,105290.0,0.702982]
[1738277024320,0.1,105300.0,105290.0,0.72672135]
[1738277024924,0.1,105300.0,105290.0,0.702982]
[1738277027018,0.1,105300.0,105290.0,0.72672108]
[1738277029629,0.1,105300.0,105290.0,0.7952531]
[1738277029924,0.0635,105310.0,105300.0,0.189905]
[1738277030229,0.0635,105310.0,105300.0,1.29466521]
[1738277030529,0.0635,105310.0,105300.0,1.29465791]
[1738277031029,0.0635,105310.0,105300.0,1.29465734]
[1738277032028,0.0302,105330.0,105300.0,1.10475234]
[1738277032331,0.0302,105330.0,105320.0,0.68773204]
[1738277032530,0.0302,105330.0,105320.0,0.72630034]
[1738277032921,0.0302,105330.0,105320.0,0.702566]
[1738277033533,0.0302,105330.0,105320.0,1.067366]
[1738277033829,0.1898,105360.0,105350.0,0.189814]
[1738277034030,0.1898,105360.0,105350.0,0.30357725]
[1738277034632,0.1898,105360.0,105350.0,0.30357646]
[1738277034823,0.2211,105360.0,105350.0,0.30357646]
[1738277035032,0.2211,105360.0,105350.0,0.28874602]
[1738277035336,0.0933,105360.0,105350.0,0.66424377]
[1738277035734,0.0933,105360.0,105350.0,0.66424315]
[1738277035936,0.0933,105360.0,105350.0,0.64954602]
[1738277037426,0.0933,105360.0,105350.0,0.72773563]
[1738277037621,0.0933,105360.0,105350.0,0.65920361]
[1738277037827,0.55057,105380.0,105370.0,0.189778]
[1738277038027,0.64367,105380.0,105370.0,0.220618]
[1738277039037,0.64467,105380.0,105370.0,0.220618]
[1738277041643,0.64467,105380.0,105370.0,0.03084]
[1738277049244,0.4549,105380.0,105360.0,1.04916002]
[1738277049446,0.64466,105380.0,105370.0,0.03096]
[1738277049641,0.28386,105380.0,105370.0,0.220738]
[1738277051044,0.28286,105380.0,105370.0,0.189778]
[1738277051346,0.28386,105380.0,105370.0,0.220698]
[1738277051546,0.28386,105380.0,105370.0,0.220658]
[1738277052834,0.28386,105380.0,105370.0,0.220578]
[1738277053850,0.28386,105380.0,105370.0,0.189778]
[1738277054057,0.28386,105380.0,105370.0,0.220538]
[1738277054350,0.28386,105380.0,105370.0,0.03076]
[1738277055348,0.189778,105370.0,105360.0,0.75562067]
[1738277055550,0.189778,105370.0,105360.0,0.78630067]
[1738277056245,0.502341,105380.0,105360.0,0.98491981]
[1738277056437,0.189778,105370.0,105360.0,0.98491981]
[1738277056748,0.189778,105370.0,105360.0,1.01555981]
[1738277058844,0.189778,105370.0,105360.0,1.48757393]
[1738277059044,0.189778,105370.0,105360.0,1.12677393]
[1738277059241,0.3608,105370.0,105360.0,1.12677393]
[1738277059441,0.189778,105370.0,105360.0,1.12677393]
[1738277060549,0.189778,105370.0,105360.0,1.19486121]
[1738277060854,0.189778,105370.0,105360.0,1.22516121]
[1738277061357,0.189778,105370.0,105360.0,0.81648354]
[1738277061543,0.189778,105370.0,105360.0,0.85393082]
[1738277061741,0.189778,105370.0,105360.0,0.88469082]
[1738277061953,0.189778,105370.0,105360.0,0.81660354]
[1738277062153,0.52974807,105380.0,105360.0,0.81660354]
[1738277062545,0.189778,105370.0,105360.0,0.81660354]
[1738277063549,0.189778,105370.0,105360.0,0.81648354]
[1738277064760,0.189778,105370.0,105360.0,0.81640354]
[1738277066058,0.189778,105370.0,105360.0,0.78584354]
[1738277066252,0.189778,105370.0,105360.0,0.81636354]
[1738277066761,0.189778,105370.0,105360.0,0.78584354]
[1738277066961,0.550578,105370.0,105360.0,0.78584354]
[1738277067162,0.550578,105370.0,105360.0,0.81628354]
[1738277067362,0.550578,105370.0,105360.0,0.78584354]
[1738277067563,0.550578,105370.0,105360.0,1.70523433]
[1738277068566,0.3608,105370.0,105360.0,1.70523433]
[1738277068766,0.550578,105370.0,105360.0,1.70523433]
[1738277069967,0.550578,105370.0,105360.0,1.70511433]
[1738277070466,0.550578,105370.0,105360.0,1.67481433]
[1738277070667,0.550578,105370.0,105360.0,0.78586354]
[1738277073363,0.550578,105370.0,105360.0,0.75554354]
[1738277073569,0.550578,105370.0,105360.0,0.78582354]
[1738277074364,0.550578,105370.0,105360.0,0.75554354]
[1738277074561,0.550578,105370.0,105360.0,0.78578354]
[1738277074762,0.61866528,105370.0,105360.0,0.78578354]
[1738277075068,0.61866528,105370.0,105360.0,0.75554354]
[1738277075458,0.61866528,105370.0,105360.0,0.78582354]
[1738277075766,0.61866528,105370.0,105360.0,0.78578354]
[1738277076067,0.61866528,105370.0,105360.0,0.75554354]
[1738277078265,0.68675256,105370.0,105360.0,0.75537243]
[1738277078465,0.68675256,105370.0,105360.0,0.38625543]
[1738277078669,0.61866528,105370.0,105360.0,0.06386943]
[1738277078868,0.68675256,105370.0,105360.0,0.06386943]
[1738277079575,0.98675256,105370.0,105360.0,0.06386943]
[1738277080170,0.98675256,105370.0,105360.0,0.68551542]
[1738277080367,0.68675256,105370.0,105360.0,0.68551542]
[1738277085376,0.73419756,105370.0,105360.0,0.16936744]
[1738277086277,0.73419756,105370.0,105360.0,0.06764144]
[1738277086578,0.73419756,105370.0,105360.0,4.4e-07]
[1738277089074,0.189796,105360.0,105350.0,0.00014258]
[1738277089378,0.78067056,105360.0,105350.0,0.00014258]
[1738277090478,0.78067056,105360.0,105350.0,0.00114258]
[1738277091186,0.78067056,105360.0,105350.0,0.00314258]
[1738277094580,0.84875784,105360.0,105350.0,0.00314258]
[1738277094787,0.78996618,105360.0,105350.0,0.00314258]
[1738277096590,0.75896618,105360.0,105350.0,0.00314258]
[1738277101985,0.75896618,105360.0,105350.0,0.22896584]
[1738277102593,0.75896618,105360.0,105350.0,0.02680384]
[1738277102897,0.82705346,105360.0,105350.0,8.4e-07]
[1738277104093,0.85865346,105360.0,105350.0,8.4e-07]
[1738277104400,0.86065346,105360.0,105350.0,8.4e-07]
[1738277104894,0.85965346,105360.0,105350.0,8.4e-07]
[1738277105497,0.189815,105350.0,105340.0,0.00014258]
[1738277105694,0.68678956,105350.0,105340.0,0.00014258]
[1738277106999,0.69078956,105350.0,105340.0,0.00014258]
[1738277107905,0.69178956,105350.0,105340.0,0.00014258]
[1738277120103,0.69178956,105350.0,105340.0,0.28270894]
[1738277124111,0.77705178,105350.0,105340.0,0.64576885]
[1738277127511,0.69178956,105350.0,105340.0,0.28270894]
[1738277133904,0.77722947,105350.0,105340.0,0.64778444]
[1738277138820,0.83143119,105350.0,105340.0,0.64778444]
[1738277140217,0.77722947,105350.0,105340.0,0.64778444]
[1738277140611,0.83143162,105350.0,105340.0,0.64778444]
[1738277142923,0.94496254,105350.0,105340.0,0.64778444]
[1738277146426,0.89076039,105350.0,105340.0,0.64778444]
[1738277151620,0.94495348,105350.0,105340.0,0.64778444]
[1738277160336,0.94495348,105350.0,105340.0,0.28270894]
[1738277160930,1.01304076,105350.0,105340.0,0.28270894]
[1738277161324,1.01304076,105350.0,105340.0,0.28256636]
[1738277161533,1.01304076,105350.0,105340.0,0.01160755]
[1738277163541,0.189833,105340.0,105330.0,0.09224258]
[1738277163739,0.75489484,105340.0,105330.0,0.09224258]
[1738277165236,0.75489484,105340.0,105330.0,0.06094258]
[1738277165434,0.75489484,105340.0,105330.0,0.03074258]
[1738277165742,0.78499484,105340.0,105330.0,0.03074258]
[1738277165939,0.78599484,105340.0,105330.0,0.03074258]
[1738277166935,0.81799484,105340.0,105330.0,0.03074258]
[1738277167439,0.84751484,105340.0,105330.0,0.00014258]
[1738277167643,0.88001484,105340.0,105330.0,0.00014258]
[1738277168843,0.88946212,105340.0,105330.0,0.00014258]
[1738277169034,1.14248669,105340.0,105330.0,0.22665059]
[1738277170346,0.189869,105320.0,105310.0,0.43277963]
[1738277170538,1.04764356,105320.0,105310.0,0.43277963]
[1738277171635,1.04764356,105320.0,105310.0,0.43477963]
[1738277172837,1.04764356,105320.0,105310.0,0.78111294]
[1738277173039,1.14509084,105320.0,105310.0,0.30888251]
[1738277173344,0.189923,105290.0,105280.0,2.18669165]
[1738277173536,0.97961028,105290.0,105280.0,2.18669165]
[1738277174345,1.04769756,105290.0,105280.0,2.18669165]
[1738277174539,0.97961028,105290.0,105280.0,2.18869165]
[1738277174738,1.04769756,105290.0,105280.0,2.18869165]
[1738277176248,1.04769756,105290.0,105280.0,2.15819165]
[1738277176439,1.04769756,105290.0,105280.0,2.15919165]
[1738277176838,1.13305224,105290.0,105280.0,0.0644]
[1738277178051,1.14247308,105290.0,105280.0,0.0644]
[1738277180143,1.0571184,105290.0,105280.0,0.0644]
[1738277185754,1.0571184,105290.0,105280.0,0.034]
[1738277186548,1.0571184,105290.0,105280.0,0.003]
[1738277201561,1.14247308,105290.0,105280.0,0.003]
[1738277203460,1.17417308,105290.0,105280.0,0.003]
[1738277206168,1.23073206,105290.0,105280.0,0.003]
[1738277210668,1.23073206,105290.0,105280.0,0.17331496]
[1738277211065,0.189941,105280.0,105270.0,0.03024258]
[1738277211271,0.78344284,105280.0,105270.0,0.03024258]
[1738277211573,0.71535556,105280.0,105270.0,0.03024258]
[1738277212159,0.71535556,105280.0,105270.0,0.03224258]
[1738277212365,0.78344284,105280.0,105270.0,0.03224258]
[1738277212561,0.71535556,105280.0,105270.0,0.03224258]
[1738277212765,0.71535556,105280.0,105270.0,0.00214258]
[1738277212969,0.81544284,105280.0,105270.0,0.00214258]
[1738277213175,0.86958573,105280.0,105270.0,0.00214258]
[1738277213467,0.80149845,105280.0,105270.0,0.00214258]
[1738277213770,0.80149845,105280.0,105270.0,0.00614258]
[1738277213974,0.74935556,105280.0,105270.0,0.00414258]
[1738277214171,0.75335556,105280.0,105270.0,0.00014258]
[1738277215369,0.75135556,105280.0,105270.0,0.00014258]
[1738277215670,0.75335556,105280.0,105270.0,0.00014258]
[1738277217078,0.92301029,105280.0,105270.0,0.00014258]
[1738277217371,0.97715318,105280.0,105270.0,0.00014258]
[1738277221577,1.11941198,105280.0,105270.0,0.00014258]
[1738277223081,1.06526909,105280.0,105270.0,0.00014258]
[1738277226485,0.89561436,105280.0,105270.0,0.00014258]
[1738277231791,0.6989998,105280.0,105270.0,0.00014258]
[1738277231986,0.5090588,105280.0,105270.0,0.42942986]
[1738277232293,0.5090588,105280.0,105270.0,0.61940786]
[1738277233283,0.5070588,105280.0,105270.0,0.62140786]
[1738277233483,0.5030588,105280.0,105270.0,0.32540786]
[1738277234199,0.5030588,105280.0,105270.0,0.62540786]
[1738277234404,0.08533149,105280.0,105270.0,0.98620786]
[1738277234587,0.66451732,105290.0,105280.0,0.18996]
[1738277234788,0.66451732,105290.0,105280.0,0.35449456]
[1738277234997,0.66451732,105290.0,105280.0,0.28640728]
[1738277236588,0.66451732,105290.0,105280.0,0.28740728]
[1738277237693,0.66451732,105290.0,105280.0,0.31750728]
[1738277237889,0.550742,105290.0,105280.0,1.10953137]
[1738277238090,0.550742,105290.0,105280.0,1.13781137]
[1738277239599,0.550742,105290.0,105280.0,1.11702459]
[1738277239800,0.550742,105290.0,105280.0,1.14526459]
[1738277240297,0.550742,105290.0,105280.0,1.14534459]
[1738277241701,0.550742,105290.0,105280.0,1.11702459]
[1738277241896,0.550742,105290.0,105280.0,0.52339662]
[1738277242104,0.550742,105290.0,105280.0,0.55175662]
[1738277242993,0.550742,105290.0,105280.0,0.52339662]
[1738277243196,0.550742,105290.0,105280.0,0.55171662]
[1738277246799,0.550742,105290.0,105280.0,0.55167662]
[1738277247003,0.550742,105290.0,105280.0,0.52339662]
[1738277247210,0.550742,105290.0,105280.0,0.55167662]
[1738277248506,0.550742,105290.0,105280.0,0.52339662]
[1738277248700,0.550742,105290.0,105280.0,0.55163662]
[1738277251108,0.550742,105290.0,105280.0,0.55159662]
[1738277252696,0.550742,105290.0,105280.0,0.52339662]
[1738277252900,0.550742,105290.0,105280.0,0.55155662]
[1738277254901,0.550742,105290.0,105280.0,0.52145662]
[1738277260328,0.583142,105290.0,105280.0,0.52145662]
[1738277262827,0.583142,105290.0,105280.0,1.21946691]
[1738277263826,0.583142,105290.0,105280.0,1.15137963]
[1738277264125,0.65122928,105290.0,105280.0,0.96101963]
[1738277264319,0.65122928,105290.0,105280.0,0.95352641]
[1738277265436,0.65122928,105290.0,105280.0,0.92576641]
[1738277265632,0.65122928,105290.0,105280.0,0.95356641]
[1738277267028,0.65122928,105290.0,105280.0,0.92576641]
[1738277268535,0.65903428,105290.0,105280.0,0.92576641]
[1738277270640,0.65903428,105290.0,105280.0,0.5870447]
[1738277284346,0.7728096,105290.0,105280.0,0.001]
[1738277288144,0.65903428,105290.0,105280.0,0.001]
[1738277297751,0.65903428,105290.0,105280.0,0.22755757]
[1738277301961,0.7728096,105290.0,105280.0,0.001]
[1738277303161,0.84089688,105290.0,105280.0,0.001]
[1738277304058,0.7728096,105290.0,105280.0,0.001]
[1738277304567,0.84089688,105290.0,105280.0,0.001]
[1738277313169,0.98315568,105290.0,105280.0,0.001]
[1738277313566,1.03732681,105290.0,105280.0,0.001]
[1738277313762,0.18996,105280.0,105270.0,0.22670015]
[1738277313966,0.84462184,105280.0,105270.0,0.22670015]
[1738277315066,0.84462184,105280.0,105270.0,0.22870015]
[1738277315373,0.84862184,105280.0,105270.0,0.22870015]
[1738277315866,1.01280681,105280.0,105260.0,0.28212405]
[1738277316073,0.71845256,105270.0,105260.0,0.28212405]
[1738277317066,0.52847456,105270.0,105250.0,0.22684965]
[1738277317260,0.77483056,105260.0,105250.0,0.22684965]
[1738277318471,0.84291784,105260.0,105250.0,0.22784965]
[1738277318774,0.77483056,105260.0,105250.0,0.22784965]
[1738277319274,0.74787056,105260.0,105250.0,0.22784965]
[1738277319574,0.77483056,105260.0,105250.0,0.22784965]
[1738277320060,0.84291784,105260.0,105250.0,0.22784965]
[1738277322076,0.95648641,105260.0,105250.0,0.00109504]
[1738277324280,0.190032,105240.0,105230.0,0.032]
[1738277324480,1.07472656,105240.0,105230.0,0.032]
[1738277324772,1.10632656,105240.0,105230.0,0.032]
[1738277325686,1.10632656,105240.0,105230.0,0.036]
[1738277326177,1.10632656,105240.0,105230.0,0.037]
[1738277326378,1.17441384,105240.0,105230.0,0.005]
[1738277326579,1.20701384,105240.0,105230.0,0.005]
[1738277327574,0.190068,105220.0,105210.0,0.03452559]
[1738277327779,1.04784256,105220.0,105210.0,0.03452559]
[1738277328079,1.04784256,105220.0,105210.0,0.0331]
[1738277328979,1.04784256,105220.0,105210.0,0.0341]
[1738277333884,1.05601903,105220.0,105210.0,0.0341]
[1738277337674,0.97975528,105220.0,105210.0,0.0341]
[1738277337880,0.97975528,105220.0,105210.0,0.224186]
[1738277338696,0.7216,105220.0,105210.0,0.250906]
[1738277338989,0.78968728,105220.0,105210.0,0.250906]
[1738277339184,0.7216,105220.0,105210.0,0.250906]
[1738277339388,0.911668,105220.0,105210.0,0.250906]
[1738277339987,0.911668,105220.0,105210.0,0.31899328]
[1738277340388,0.550868,105220.0,105210.0,0.250906]
[1738277344294,0.61895528,105220.0,105210.0,0.250906]
[1738277347495,0.61895528,105220.0,105210.0,0.53295005]
[1738277348397,0.61895528,105220.0,105210.0,0.50631005]
[1738277348597,0.61895528,105220.0,105210.0,0.53291005]
[1738277348897,0.61895528,105220.0,105210.0,0.50631005]
[1738277349487,0.61895528,105220.0,105210.0,0.31622405]
[1738277349692,0.65075528,105220.0,105210.0,0.31622405]
[1738277351503,0.65075528,105220.0,105210.0,0.6078742]
[1738277352494,0.65075528,105220.0,105210.0,0.6343942]
[1738277354500,0.65075528,105220.0,105210.0,0.6078742]
[1738277354897,0.71884256,105220.0,105210.0,0.5747742]
[1738277355100,0.71884256,105220.0,105210.0,0.1711757]
[1738277355291,0.65075528,105220.0,105210.0,0.1711757]
[1738277355707,0.71884256,105220.0,105210.0,0.1711757]
[1738277355896,0.65075528,105220.0,105210.0,0.1711757]
[1738277358696,0.73614567,105220.0,105210.0,0.1711757]
[1738277361499,0.80423295,105220.0,105210.0,0.1711757]
[1738277361701,0.73614567,105220.0,105210.0,0.1711757]
[1738277362594,0.74427623,105220.0,105210.0,0.1711757]
[1738277362808,0.74427623,105220.0,105210.0,0.001]
[1738277366505,0.74427623,105220.0,105210.0,0.573362]
[1738277367191,0.81236351,105220.0,105210.0,0.573362]
[1738277370508,0.81236351,105220.0,105210.0,0.001]
[1738277372001,0.74427623,105220.0,105210.0,0.001]
[1738277374812,0.74427623,105220.0,105210.0,0.28312405]
[1738277375313,0.74527623,105220.0,105210.0,0.28312405]
[1738277375620,0.74727623,105220.0,105210.0,0.28212405]
[1738277377911,0.74727623,105220.0,105210.0,0.80445634]
[1738277382005,0.8608448,105220.0,105210.0,0.57727918]
[1738277383416,0.8608448,105220.0,105210.0,0.57746252]
[1738277385810,0.92893208,105220.0,105210.0,0.57746252]
[1738277386011,0.8608448,105220.0,105210.0,0.57746252]
[1738277386211,0.92893208,105220.0,105210.0,0.57746252]
[1738277389515,0.92893208,105220.0,105210.0,0.3978815]
[1738277389516,0.98580049,105220.0,105210.0,0.3978815]
[1738277394517,0.98580049,105220.0,105210.0,0.17062541]
[1738277394812,1.01288049,105220.0,105210.0,0.17062541]
[1738277396413,1.08096777,105220.0,105210.0,0.17062541]
[1738277396610,1.01288049,105220.0,105210.0,0.17062541]
[1738277396917,1.0670721,105220.0,105210.0,0.17062541]
[1738277397413,1.13515938,105220.0,105210.0,0.17062541]
[1738277398527,1.02159081,105220.0,105210.0,0.00018334]
[1738277398823,0.9673992,105220.0,105210.0,0.00018334]
[1738277399220,0.89931192,105220.0,105210.0,0.00018334]
[1738277399417,0.9673992,105220.0,105210.0,0.00018334]
[1738277403320,0.9663992,105220.0,105210.0,0.00018334]
[1738277403521,0.9693992,105220.0,105210.0,0.00018334]
[1738277405122,0.9663992,105220.0,105210.0,0.00018334]
[1738277405321,0.9733992,105220.0,105210.0,0.00118334]
[1738277406026,0.9703992,105220.0,105210.0,0.00018334]
[1738277406424,0.9713992,105220.0,105210.0,0.00018334]
[1738277407226,0.9703992,105220.0,105210.0,0.00018334]
[1738277409127,0.6095992,105220.0,105210.0,0.00018334]
[1738277409329,1.3311992,105220.0,105210.0,0.00018334]
[1738277410230,1.38536485,105220.0,105210.0,0.00018334]
[1738277411435,0.190104,105200.0,105190.0,0.22725609]
[1738277411622,1.00651128,105200.0,105190.0,0.22725609]
[1738277411828,1.03871128,105200.0,105190.0,0.22725609]
[1738277412731,1.03871128,105200.0,105190.0,0.22925609]
[1738277412933,1.17488584,105200.0,105190.0,0.22925609]
[1738277413526,1.17488584,105200.0,105190.0,0.002]
[1738277415838,1.18341803,105200.0,105190.0,0.002]
[1738277417939,1.49528835,105200.0,105190.0,0.002]
[1738277418127,1.30518435,105200.0,105170.0,0.0323]
[1738277418331,0.97982728,105180.0,105170.0,0.0323]
[1738277418632,1.07483456,105180.0,105170.0,0.0323]
[1738277418937,1.17462184,105180.0,105170.0,0.0323]
[1738277419132,1.10653456,105180.0,105170.0,0.0323]
[1738277419439,1.17462184,105180.0,105170.0,0.0323]
[1738277419640,1.10653456,105180.0,105170.0,0.0323]
[1738277420037,1.17462184,105180.0,105170.0,0.0323]
[1738277420732,1.17462184,105180.0,105170.0,0.0333]
[1738277421136,1.17462184,105180.0,105170.0,0.001]
[1738277421334,0.190158,105170.0,105160.0,0.22725609]
[1738277421635,0.71973256,105170.0,105160.0,0.22725609]
[1738277422439,0.52957456,105170.0,105140.0,0.32295609]
[1738277422635,0.97988128,105150.0,105140.0,0.32295609]
[1738277424336,0.98188128,105150.0,105140.0,0.32295609]
[1738277425140,0.98588128,105150.0,105140.0,0.32295609]
[1738277426640,0.98588128,105150.0,105140.0,0.0957]
[1738277429438,0.98588128,105150.0,105140.0,0.0641]
[1738277430741,0.99455133,105150.0,105140.0,0.0641]
[1738277440148,0.99255133,105150.0,105140.0,0.0641]
[1738277441349,0.98855133,105150.0,105140.0,0.0956]
[1738277443949,0.98855133,105150.0,105140.0,0.285812]
[1738277445039,0.98855133,105150.0,105140.0,0.312372]
[1738277445040,0.7216,105150.0,105140.0,0.312372]
[1738277445241,0.70429988,105160.0,105150.0,0.190194]
[1738277446351,0.70429988,105160.0,105150.0,0.197194]
[1738277447143,0.70429988,105160.0,105150.0,0.223754]
[1738277450144,0.61907228,105160.0,105150.0,0.223754]
[1738277450344,0.61907228,105160.0,105150.0,0.45101009]
[1738277451442,0.61907228,105160.0,105150.0,0.26081609]
[1738277452354,0.61907228,105160.0,105150.0,0.26105609]
[1738277452855,0.61907228,105160.0,105150.0,0.45125009]
[1738277453859,0.61907228,105160.0,105150.0,0.73337414]
[1738277458159,0.61907228,105160.0,105150.0,1.02096199]
[1738277459260,0.65177228,105160.0,105150.0,1.02096199]
[1738277461453,0.65177228,105160.0,105150.0,0.83076799]
[1738277461656,0.65177228,105160.0,105150.0,0.83072799]
[1738277462054,0.65177228,105160.0,105150.0,0.26101609]
[1738277464275,0.583685,105160.0,105150.0,0.26101609]
[1738277464464,0.65177228,105160.0,105150.0,0.26101609]
[1738277471175,0.65177228,105160.0,105150.0,0.23425609]
[1738277471474,0.65177228,105160.0,105150.0,0.26089609]
[1738277472379,0.583685,105160.0,105150.0,0.26089609]
[1738277472968,0.65177228,105160.0,105150.0,0.26089609]
[1738277473364,0.583685,105160.0,105150.0,0.26089609]
[1738277474476,0.583685,105160.0,105150.0,0.03364]
[1738277474981,0.65177228,105160.0,105150.0,0.03364]
[1738277476079,0.583685,105160.0,105150.0,0.03364]
[1738277476275,0.65177228,105160.0,105150.0,0.03364]
[1738277476573,0.65177228,105160.0,105150.0,0.007]
[1738277476781,0.65177228,105160.0,105150.0,0.03352]
[1738277483482,0.65177228,105160.0,105150.0,0.03052]
[1738277483688,0.65177228,105160.0,105150.0,0.02852]